bitfinex/quotes_ETHUSD_20250925
["timestamp","ask_amount","ask_price","bid_price","bid_amount"]
[1758771416079,0.021,4050.9,4050.8,7.48894816]
[1758771416480,0.021,4050.9,4050.8,7.94414816]
[1758771417696,0.001,4051.4,4051.3,2.46834349]
[1758771417991,0.001,4051.4,4051.3,10.34817784]
[1758771418290,0.001,4051.4,4051.3,10.24267784]
[1758771418789,0.001,4051.4,4051.3,10.36587784]
[1758771420992,0.001,4051.4,4051.3,3.52587784]
[1758771421156,0.001,4051.4,4051.3,10.23867784]
[1758771421958,0.001,4051.4,4050.8,0.2289]
[1758771422160,0.6681,4051.3,4050.4,2.057]
[1758771422390,0.6681,4051.3,4050.5,2.24468831]
[1758771422695,0.2326,4051.3,4050.6,2.46876217]
[1758771422901,0.2326,4051.3,4050.7,0.02468709]
[1758771423096,0.2326,4051.3,4050.8,4.777]
[1758771423398,0.2326,4051.2,4050.9,0.02468587]
[1758771423969,0.6681,4051.1,4050.9,0.02468587]
[1758771424282,0.001,4051.4,4050.9,2.49321766]
[1758771424459,0.001,4051.4,4050.9,0.02468587]
[1758771424660,0.6691,4051.4,4050.9,0.02468587]
[1758771425088,0.2326,4051.3,4050.9,0.02468587]
[1758771425295,0.6681,4051.3,4050.9,0.02468587]
[1758771426274,0.001,4051.4,4051.0,2.46851603]
[1758771426477,0.001,4051.4,4051.1,0.02468465]
[1758771426676,0.6691,4051.4,4050.9,2.49325522]
[1758771426972,0.6691,4051.4,4050.9,0.02468587]
[1758771427165,0.6681,4051.3,4050.9,0.02468587]
[1758771427794,0.6681,4051.2,4050.9,0.02468587]
[1758771428161,0.6681,4051.2,4050.9,4.79468587]
[1758771428362,0.001,4051.4,4050.9,4.77]
[1758771428566,0.001,4051.4,4051.3,2.46834349]
[1758771428767,0.001,4051.4,4051.2,2.46839462]
[1758771429094,0.001,4051.4,4051.3,9.29534349]
[1758771429394,0.001,4051.4,4051.2,0.72383946]
[1758771429569,0.001,4051.4,4051.3,7.23734349]
[1758771430496,0.001,4051.4,4051.3,2.46834349]
[1758771430673,0.001,4051.4,4051.3,7.23534349]
[1758771433329,0.001,4051.4,4051.3,4.767]
[1758771433477,0.001,4051.4,4050.2,0.2369]
[1758771433683,0.715,4051.3,4050.4,2.46889196]
[1758771433979,0.715,4051.3,4051.0,2.46847948]
[1758771434131,0.001,4051.4,4051.0,4.763]
[1758771434290,0.715,4051.2,4050.9,4.763]
[1758771435706,0.715,4051.2,4050.9,7.23158492]
[1758771436046,0.001,4051.4,4051.0,0.02468526]
[1758771436599,0.716,4051.4,4051.0,0.02468526]
[1758771436794,0.716,4051.4,4051.0,2.49319843]
[1758771436995,0.716,4051.4,4051.0,0.02468526]
[1758771437301,0.001,4051.4,4051.0,2.49320253]
[1758771437750,0.001,4051.4,4051.3,2.46834349]
[1758771437918,0.001,4051.4,4051.3,7.25202692]
[1758771438247,0.001,4051.4,4051.3,7.46424349]
[1758771438433,0.001,4051.4,4051.3,7.22734349]
[1758771439034,0.001,4051.4,4051.3,7.46424349]
[1758771439219,0.001,4051.4,4051.3,8.9801464]
[1758771440068,0.001,4051.4,4051.3,11.9801464]
[1758771440281,0.001,4051.4,4051.3,14.0341464]
[1758771441257,0.001,4051.4,4051.3,14.0321464]
[1758771441748,0.001,4052.3,4052.2,2.46779527]
[1758771441950,0.001,4052.3,4052.2,7.4685748]
[1758771442369,0.001,4052.3,4052.2,8.1555748]
[1758771442665,0.001,4052.3,4052.2,5.00077953]
[1758771442869,0.001,4052.3,4052.2,2.46779527]
[1758771443072,0.001,4052.3,4052.2,7.21979527]
[1758771446049,0.001,4053.1,4053.0,7.21530816]
[1758771446449,0.001,4053.1,4052.3,0.687]
[1758771446766,0.001,4053.1,4052.4,5.847]
[1758771447060,0.001,4053.1,4052.5,2.46761258]
[1758771447284,0.001,4053.1,4052.9,2.46732316]
[1758771447589,0.001,4053.1,4053.0,4.747]
[1758771449460,0.001,4053.1,4053.0,7.21430816]
[1758771449784,0.001,4053.1,4053.0,5.71763728]
[1758771450099,0.001,4053.1,4053.0,4.743]
[1758771450456,0.001,4053.1,4053.0,7.21030816]
[1758771450764,0.716,4053.1,4053.0,4.742]
[1758771450950,0.001,4053.1,4053.0,4.742]
[1758771451296,0.001,4053.1,4053.0,4.76667308]
[1758771451501,0.001,4053.1,4053.0,4.742]
[1758771452354,0.001,4053.1,4051.8,2.46798925]
[1758771452355,0.001,4053.1,4051.9,0.2369]
[1758771452550,0.001,4053.1,4052.0,7.58727809]
[1758771452796,0.001,4053.1,4052.8,2.46738433]
[1758771453063,0.001,4053.1,4053.0,2.46730816]
[1758771453267,0.001,4053.1,4053.0,2.49198124]
[1758771453493,0.001,4053.1,4053.0,3.17898124]
[1758771453781,0.001,4053.1,4053.0,4.42312209]
[1758771455481,0.001,4053.1,4053.0,4.39844901]
[1758771456086,0.001,4053.1,4053.0,4.42312209]
[1758771456975,0.001,4053.1,4053.0,4.39844901]
[1758771458580,0.02,4053.9,4053.8,2.46682125]
[1758771458581,1e-08,4053.9,4053.8,2.46682125]
[1758771458793,1e-08,4053.9,4053.8,9.50050338]
[1758771459117,1e-08,4053.9,4053.8,10.18750338]
[1758771459625,1e-08,4053.9,4053.8,2.46682125]
[1758771460116,1e-08,4053.9,4053.8,7.19582125]
[1758771461583,0.69370001,4053.9,4053.6,2.46692652]
[1758771461781,1e-08,4053.9,4053.7,4.728]
[1758771461990,1e-08,4053.9,4053.5,2.056]
[1758771461991,1e-08,4053.9,4053.8,8.59358946]
[1758771462196,1e-08,4053.9,4053.8,8.56892125]
[1758771462828,1e-08,4053.9,4053.8,11.56892125]
[1758771463182,0.00100001,4053.9,4053.8,11.56892125]
[1758771466200,0.12980002,4055.4,4055.3,2.46590881]
[1758771466417,0.12980002,4055.4,4055.3,7.18690881]
[1758771466715,0.793,4056.6,4055.3,7.18690881]
[1758771466716,0.4499,4056.2,4055.6,2.4657264]
[1758771466914,0.4499,4056.2,4055.6,7.1857264]
[1758771467122,0.4499,4055.7,4055.6,7.1857264]
[1758771467486,0.001,4055.7,4055.6,7.1857264]
[1758771467925,0.001,4055.7,4055.6,8.15087964]
[1758771470219,0.001,4055.7,4055.6,8.97177964]
[1758771470593,0.001,4056.2,4056.1,2.46542245]
[1758771470923,0.001,4056.2,4056.1,3.25742245]
[1758771471123,0.02,4057.9,4057.6,2.46451104]
[1758771471422,0.02,4057.9,4057.7,4.714]
[1758771471583,0.1799,4057.9,4057.8,4.714]
[1758771471787,0.1799,4057.9,4057.8,4.713]
[1758771471987,0.02,4057.9,4057.8,7.17738957]
[1758771472406,0.02,4057.9,4057.8,4.713]
[1758771472606,0.02,4057.9,4057.8,7.87508957]
[1758771473118,0.02,4057.9,4057.8,9.23038957]
[1758771473921,0.02,4057.9,4057.8,9.22938957]
[1758771474612,0.02,4057.9,4057.8,9.47588957]
[1758771474814,0.02,4057.9,4057.8,10.68224853]
[1758771475522,0.02,4057.9,4057.8,11.13344853]
[1758771476432,0.02,4058.9,4058.6,2.4639038]
[1758771476639,0.02,4058.9,4058.6,4.706]
[1758771476927,0.02,4058.9,4058.6,7.1699038]
[1758771477099,0.02,4058.9,4058.6,9.65653927]
[1758771478224,0.02,4058.9,4058.6,7.59953927]
[1758771478404,0.02,4058.9,4058.6,2.89653927]
[1758771478605,0.02,4058.9,4057.8,1.20635896]
[1758771478790,0.6088,4058.6,4058.3,2.4640361]
[1758771478998,0.4489,4058.6,4058.4,4.212018]
[1758771479313,0.02,4058.9,4058.5,4.703]
[1758771479626,0.02,4058.9,4058.5,4.702]
[1758771479838,0.6088,4058.6,4057.2,0.2465]
[1758771480136,0.6088,4058.6,4057.3,6.755]
[1758771480344,0.6088,4058.5,4057.5,2.46452643]
[1758771480559,0.6088,4058.4,4057.4,2.46461051]
[1758771480711,2.48377486,4058.9,4057.5,4.7]
[1758771480712,0.6088,4058.3,4057.5,4.7]
[1758771480910,0.02,4058.9,4057.5,4.7]
[1758771480911,0.4489,4058.2,4057.5,4.7]
[1758771481225,0.4489,4058.2,4056.4,2.46523166]
[1758771481226,0.634,4058.1,4057.6,4.699]
[1758771481429,0.634,4058.1,4056.3,0.2468]
[1758771481430,0.634,4058.0,4057.7,4.699]
[1758771481627,0.634,4057.9,4057.7,4.699]
[1758771481946,0.792,4058.8,4056.3,0.2468]
[1758771481947,0.634,4057.8,4057.0,2.46486774]
[1758771482247,0.634,4057.8,4056.9,2.46490966]
[1758771482409,0.1599,4057.8,4056.3,0.2468]
[1758771482606,0.50386981,4058.3,4055.0,2.46606603]
[1758771482607,0.634,4057.7,4056.4,4.51923934]
[1758771482848,0.50386981,4058.3,4056.5,4.697]
[1758771482849,0.1599,4057.6,4056.5,4.697]
[1758771483053,0.001,4058.7,4056.5,0.92162393]
[1758771483208,0.1599,4058.6,4056.6,7.4384]
[1758771483413,0.4741,4058.5,4057.6,2.46446971]
[1758771483681,0.4741,4058.5,4057.7,2.4644503]
[1758771483872,0.4741,4058.5,4057.2,0.2468]
[1758771483873,0.4741,4058.5,4057.8,4.696]
[1758771484211,0.792,4058.5,4056.3,2.46530088]
[1758771484410,0.634,4058.4,4056.5,0.2468]
[1758771484667,0.1599,4058.3,4056.6,0.02465118]
[1758771484829,0.4741,4058.2,4056.7,2.46504194]
[1758771485144,0.4741,4058.2,4056.5,0.2468]
[1758771485145,0.634,4058.1,4056.9,2.4649224]
[1758771485324,2.46403641,4058.4,4056.6,2.46511857]
[1758771485325,0.634,4058.0,4057.0,4.694]
[1758771485723,0.001,4058.7,4057.4,2.46461957]
[1758771485724,0.634,4058.4,4057.4,2.46461957]
[1758771485912,0.001,4058.7,4057.7,2.46439156]
[1758771486247,0.001,4058.7,4058.4,2.46401507]
[1758771486444,0.001,4058.7,4057.8,4.694]
[1758771486445,0.001,4058.7,4058.5,4.71763964]
[1758771486607,0.001,4058.7,4058.6,4.693]
[1758771487647,0.001,4058.7,4058.6,4.692]
[1758771487946,0.001,4058.7,4058.4,2.46400505]
[1758771488123,0.001,4058.7,4058.2,0.2468]
[1758771488315,0.001,4058.7,4058.5,4.691]
[1758771489127,0.001,4058.7,4058.6,0.02463903]
[1758771489324,0.001,4058.7,4058.5,4.691]
[1758771489526,0.001,4058.7,4058.6,2.4639038]
[1758771489730,0.001,4058.7,4058.6,9.92094283]
[1758771489929,0.001,4058.7,4058.6,9.8963038]
[1758771490320,0.001,4058.7,4058.6,10.0187038]
[1758771490933,0.001,4058.7,4058.6,10.8107038]
[1758771491252,0.001,4058.7,4058.6,12.21249679]
[1758771492127,0.001,4058.7,4058.6,5.46749679]
[1758771492328,0.001,4058.7,4058.6,12.20649679]
[1758771492532,0.001,4058.7,4058.6,6.72849679]
[1758771492878,0.001,4058.7,4058.6,9.8893038]
[1758771493725,0.001,4058.7,4058.6,2.7107038]
[1758771493926,0.001,4058.7,4058.6,2.053]
[1758771494163,0.001,4058.7,4058.6,9.2009038]
[1758771494572,0.001,4059.2,4058.6,9.2009038]
[1758771494573,0.001,4059.2,4058.8,2.46378239]
[1758771494745,0.001,4059.5,4058.7,0.792]
[1758771494746,0.001,4059.5,4059.4,2.46341823]
[1758771494945,0.001,4059.5,4059.4,9.19841823]
[1758771495150,0.001,4059.5,4059.4,9.88201823]
[1758771495399,0.001,4059.5,4059.4,3.14701823]
[1758771495601,0.001,4059.5,4059.4,9.88201823]
[1758771495894,0.001,4059.5,4059.4,10.43297002]
[1758771496045,0.001,4059.5,4059.4,11.11657002]
[1758771496466,0.001,4059.5,4059.4,4.38157002]
[1758771496748,0.001,4059.5,4059.4,10.69765241]
[1758771496984,0.001,4059.5,4059.4,10.67301823]
[1758771497369,0.001,4059.5,4059.4,3.14701823]
[1758771497565,0.001,4059.5,4059.4,2.69541823]
[1758771497795,0.001,4059.5,4059.4,4.51641823]
[1758771498003,0.001,4059.5,4059.4,3.16141184]
[1758771498181,0.001,4059.5,4059.4,6.732]
[1758771498656,0.001,4059.5,4059.4,9.19541823]
[1758771498851,0.001,4059.5,4059.4,3.93901823]
[1758771499050,0.02,4060.9,4059.4,3.93901823]
[1758771499051,0.02,4060.9,4060.8,2.46256895]
[1758771499282,0.02,4060.9,4059.5,0.792]
[1758771499283,0.02,4060.9,4060.2,2.46292397]
[1758771499449,0.02,4060.9,4060.5,2.462741]
[1758771499649,0.02,4060.9,4060.6,9.19269012]
[1758771499867,0.02,4060.9,4060.7,7.13959456]
[1758771500267,0.02,4060.9,4060.8,2.46256895]
[1758771500464,0.02,4060.9,4060.7,4.677]
[1758771500880,0.02,4060.9,4060.7,7.13962672]
[1758771501061,0.02,4060.9,4060.7,4.677]
[1758771501264,0.02,4060.9,4060.7,5.84254391]
[1758771501798,0.001,4060.4,4060.3,2.70916149]
[1758771502001,0.001,4060.4,4060.3,9.19086909]
[1758771502208,0.001,4060.4,4060.3,6.728]
[1758771502411,0.001,4060.4,4060.3,9.1908722]
[1758771502811,0.001,4060.4,4060.0,2.69505027]
[1758771502812,0.001,4060.4,4060.0,0.232]
[1758771503026,0.001,4060.4,4060.3,2.053]
[1758771503568,0.001,4060.4,4060.3,4.54050092]
[1758771504007,0.001,4060.4,4060.3,2.053]
[1758771504511,0.001,4060.4,4060.3,6.724]
[1758771504713,0.001,4060.4,4060.3,4.671]
[1758771504921,0.001,4060.4,4060.0,0.3269105]
[1758771505098,0.001,4060.4,4059.9,2.053]
[1758771505307,0.001,4060.4,4060.2,2.46291965]
[1758771505624,0.001,4060.4,4060.3,9.1848722]
[1758771505920,0.001,4060.4,4059.9,0.45162253]
[1758771506086,0.001,4060.4,4060.2,2.052]
[1758771506273,0.001,4060.4,4060.2,4.51492382]
[1758771506615,0.001,4060.4,4060.2,2.052]
[1758771507167,0.001,4060.4,4060.3,4.668]
[1758771507602,0.001,4060.4,4060.2,2.46291936]
[1758771507797,0.001,4060.4,4060.3,9.1828722]
[1758771508316,0.001,4060.4,4060.3,6.72]
[1758771508475,0.001,4060.4,4060.0,0.232]
[1758771508676,0.001,4060.4,4060.3,2.4628722]
[1758771509305,0.001,4060.4,4060.3,4.667]
[1758771509510,0.4298,4060.4,4060.3,4.667]
[1758771509707,0.001,4060.4,4060.3,4.667]
[1758771510149,0.001,4060.4,4060.3,8.07269952]
[1758771510314,0.001,4060.4,4060.3,8.7296708]
[1758771510645,0.001,4060.4,4060.3,10.7816708]
[1758771511149,0.001,4060.4,4060.3,8.7296708]
[1758771511353,0.001,4060.4,4060.3,10.7816708]
[1758771511709,0.001,4060.4,4060.3,4.0646708]
[1758771511910,0.001,4060.4,4060.3,10.80529952]
[1758771512145,0.001,4060.4,4060.3,10.7806708]
[1758771512344,0.001,4060.4,4060.3,11.6950708]
[1758771512546,0.001,4060.4,4060.3,14.6950708]
[1758771513642,0.001,4060.4,4060.3,7.9790708]
[1758771513806,0.001,4060.4,4060.3,21.1070708]
[1758771514012,0.001,4060.4,4060.3,7.9790708]
[1758771514338,0.001,4060.4,4060.3,12.6400708]
[1758771514639,0.001,4060.4,4060.3,14.6920708]
[1758771514949,0.001,4060.4,4060.3,7.9790708]
[1758771515154,0.001,4060.4,4060.3,14.6920708]
[1758771515704,0.001,4060.4,4060.3,14.6900708]
[1758771516711,0.001,4060.4,4060.3,7.9790708]
[1758771516909,0.001,4060.4,4060.3,14.6900708]
[1758771517242,0.001,4060.4,4060.3,14.6890708]
[1758771517415,0.001,4060.4,4060.3,7.9790708]
[1758771517622,0.001,4060.4,4060.3,14.6880708]
[1758771517806,0.001,4060.4,4060.3,7.9790708]
[1758771518012,0.001,4060.4,4060.3,14.6880708]
[1758771518530,0.001,4060.4,4060.3,12.6360708]
[1758771518859,0.001,4060.4,4060.3,14.6880708]
[1758771519944,0.001,4060.4,4060.3,7.9790708]
[1758771520243,0.001,4060.4,4060.3,14.2354708]
[1758771520923,0.001,4060.4,4060.3,2.9701986]
[1758771521122,0.001,4060.4,4060.3,6.706]
[1758771522723,0.001,4060.4,4060.1,2.46294759]
[1758771522921,0.001,4060.4,4059.9,2.46311266]
[1758771522922,0.001,4060.4,4060.2,6.704]
[1758771523126,0.001,4060.4,4060.2,9.16692163]
[1758771523441,0.001,4060.4,4060.3,2.4628722]
[1758771523646,0.001,4060.4,4060.3,3.65048734]
[1758771524108,0.001,4060.4,4060.3,3.62585862]
[1758771524321,0.001,4060.4,4060.3,3.65048734]
[1758771524527,0.001,4060.4,4060.3,4.43835862]
[1758771524726,0.001,4060.4,4060.3,3.74825862]
[1758771524926,0.001,4060.4,4060.3,9.2872722]
[1758771525567,0.001,4060.4,4060.3,2.5852722]
[1758771525763,0.001,4060.4,4060.3,9.1648722]
[1758771526137,0.001,4060.4,4060.3,4.649]
[1758771526436,0.4577,4060.4,4060.3,6.7]
[1758771526833,0.001,4060.4,4060.3,6.7]
[1758771527234,0.001,4060.4,4060.3,6.699]
[1758771528967,0.001,4060.4,4060.3,6.698]
[1758771529381,0.001,4060.4,4060.3,7.61410353]
[1758771529543,0.001,4060.4,4060.3,10.07697573]
[1758771529731,0.001,4060.4,4060.3,10.76707573]
[1758771530969,0.001,4060.4,4060.3,3.61697573]
[1758771531147,0.001,4060.4,4060.3,10.76507573]
[1758771531982,0.001,4060.4,4060.3,11.55707573]
[1758771532383,0.001,4060.4,4060.3,14.55707573]
[1758771535202,0.02,4061.9,4061.0,3.792]
[1758771535367,0.6186,4061.8,4060.4,2.14580757]
[1758771535695,0.4567,4061.7,4061.0,2.46243847]
[1758771535895,0.6186,4061.6,4061.1,4.639]
[1758771536204,0.6186,4061.5,4061.2,6.691]
[1758771536381,0.6186,4061.4,4061.3,2.052]
[1758771536702,0.6186,4061.4,4061.0,2.46242781]
[1758771537002,0.4567,4061.3,4061.1,6.93624278]
[1758771537212,0.4567,4061.3,4061.1,0.24624278]
[1758771537408,0.4567,4061.3,4061.2,6.689]
[1758771537560,0.4567,4061.3,4060.6,0.1224]
[1758771537561,0.6196,4061.3,4060.6,0.1224]
[1758771537905,0.6196,4061.3,4060.7,2.17]
[1758771538264,0.6196,4061.3,4060.7,2.633275]
[1758771538892,0.6196,4061.3,4060.7,2.17]
[1758771540193,0.6196,4061.3,4060.7,4.63259805]
[1758771540407,0.6196,4061.3,4060.7,2.17]
[1758771540561,0.6186,4061.2,4060.0,0.1224]
[1758771540766,0.6186,4061.2,4060.1,4.524]
[1758771541002,0.001,4061.3,4060.1,4.524]
[1758771541179,0.6165,4061.1,4060.1,4.524]
[1758771541375,0.001,4061.3,4059.9,0.002]
[1758771541376,0.6165,4061.0,4059.9,0.002]
[1758771541588,0.6165,4061.0,4060.0,2.325]
[1758771541763,0.6165,4060.9,4060.0,2.325]
[1758771541966,0.6165,4060.8,4059.9,0.002]
[1758771542164,0.4546,4060.8,4060.7,2.46262959]
[1758771542465,0.001,4061.3,4060.7,2.76926296]
[1758771542659,0.001,4061.3,4060.8,0.02462568]
[1758771542885,0.001,4061.3,4060.8,2.46255084]
[1758771543085,0.001,4061.3,4060.7,2.76926296]
[1758771543499,0.001,4061.3,4060.8,6.683]
[1758771543826,0.6165,4061.2,4059.9,0.2505]
[1758771543970,0.1619,4061.1,4060.0,6.683]
[1758771544166,0.6165,4061.1,4060.0,7.3515]
[1758771544403,0.6165,4061.1,4060.2,2.46288209]
[1758771544609,0.6165,4061.1,4060.0,7.3515]
[1758771544805,0.6165,4061.1,4060.0,0.6685]
[1758771544976,0.6165,4061.1,4060.1,6.681]
[1758771545493,0.6165,4061.1,4060.2,6.681]
[1758771546879,0.6165,4061.1,4060.3,6.681]
[1758771547598,0.6165,4061.1,4059.9,2.46507502]
[1758771547910,0.6165,4061.1,4060.0,6.68]
[1758771548071,0.4546,4061.0,4060.0,6.68]
[1758771548477,0.4546,4061.0,4059.9,0.002]
[1758771548771,0.1619,4060.9,4060.0,6.678]
[1758771548972,0.1619,4060.9,4060.0,7.59231678]
[1758771549375,0.001,4061.3,4059.9,0.002]
[1758771549376,2.46305418,4060.0,4059.9,0.002]
[1758771549671,2.46335755,4059.5,4059.0,0.002]
[1758771549874,6.25535755,4059.5,4059.0,0.002]
[1758771550212,3.0,4059.2,4059.0,0.002]
[1758771550412,5.46353961,4059.2,4059.0,0.002]
[1758771550580,6.07043961,4059.2,4059.0,0.002]
[1758771550990,3.6069,4059.2,4059.0,0.002]
[1758771551223,3.0,4059.2,4059.0,0.002]
[1758771551395,3.445,4059.2,4059.0,0.002]
[1758771551597,3.6069,4059.2,4059.0,0.002]
[1758771551995,6.07043961,4059.2,4059.0,0.002]
[1758771552216,3.0,4059.2,4059.0,0.002]
[1758771553116,0.445,4059.9,4059.0,0.002]
[1758771553117,0.445,4059.9,4059.0,0.02663661]
[1758771553319,0.445,4060.3,4059.2,0.02463539]
[1758771553820,0.445,4060.7,4059.3,0.6952]
[1758771554020,0.445,4060.7,4059.4,7.52454533]
[1758771554195,0.445,4060.7,4059.5,1.11805292]
[1758771555490,2.46245122,4061.0,4059.6,0.2485]
[1758771556396,2.46326727,4061.3,4059.2,0.2485]
[1758771556397,0.6069,4060.9,4059.2,0.2485]
[1758771556603,0.6069,4060.9,4059.3,6.674]
[1758771556604,0.1619,4060.8,4059.3,6.674]
[1758771556798,2.46311613,4059.9,4059.1,0.022]
[1758771557123,0.445,4060.0,4059.1,0.022]
[1758771557524,2.90806255,4060.0,4059.2,0.02463539]
[1758771557723,2.90806255,4060.0,4059.1,0.022]
[1758771557724,2.46318266,4059.8,4059.1,0.022]
[1758771557926,0.792,4059.8,4059.1,0.022]
[1758771558131,2.46346532,4059.4,4059.1,0.022]
[1758771558348,2.46351137,4059.3,4059.1,0.022]
[1758771558724,3.6069,4059.2,4059.1,0.022]
[1758771559100,6.07043961,4059.2,4059.1,0.022]
[1758771559529,3.6069,4059.2,4059.1,0.022]
[1758771559733,3.18893719,4059.2,4059.1,0.022]
[1758771560330,0.6069,4059.2,4059.1,0.022]
[1758771560522,0.445,4059.2,4059.1,0.022]
[1758771561128,6.07043961,4059.2,4059.1,0.022]
[1758771561298,6.86243961,4059.2,4059.1,0.022]
[1758771562400,11.47943961,4059.2,4059.1,0.022]
[1758771564437,6.2556003,4059.1,4059.0,0.002]
[1758771564637,26.50280772,4059.1,4059.0,0.002]
[1758771564798,27.10970772,4059.1,4059.0,0.002]
[1758771566478,27.10970772,4059.1,4058.6,0.002]
[1758771566479,6.25578239,4058.8,4058.6,0.002]
[1758771566776,12.92178239,4058.8,4058.6,0.002]
[1758771566953,13.52868239,4058.8,4058.6,0.002]
[1758771567349,9.0119,4058.8,4058.6,0.002]
[1758771567650,7.612,4058.8,4058.6,0.002]
[1758771567856,5.46378239,4058.8,4058.6,0.002]
[1758771568045,10.07578239,4058.8,4058.6,0.002]
[1758771568938,3.0,4058.8,4058.6,0.002]
[1758771569142,7.612,4058.8,4058.6,0.002]
[1758771569679,3.0,4058.8,4058.6,0.002]
[1758771569976,4.72753428,4059.3,4058.6,0.002]
[1758771570143,3.0,4059.2,4058.7,0.6972]
[1758771570345,0.11753428,4059.3,4058.7,0.6972]
[1758771570558,3.0,4059.4,4058.7,0.002]
[1758771570839,2.46375003,4058.9,4058.7,0.002]
[1758771571241,7.7719,4059.1,4058.7,0.002]
[1758771571479,3.07068239,4058.8,4058.7,0.002]
[1758771571881,2.46378239,4058.8,4058.7,0.002]
[1758771572081,5.46378239,4058.8,4058.7,0.002]
[1758771573188,10.67968239,4058.8,4058.7,0.002]
[1758771573943,11.47168239,4058.8,4058.7,0.002]
[1758771574578,11.30778239,4058.8,4058.7,0.002]
[1758771575375,10.51578239,4058.8,4058.7,0.002]
[1758771575683,3.0,4058.8,4058.7,0.2505]
[1758771575871,3.0,4058.8,4058.7,0.6972]
[1758771576479,4.605,4059.5,4058.7,0.6972]
[1758771576685,2.46322054,4059.8,4058.8,0.2485]
[1758771576884,3.0,4059.6,4058.8,0.6952]
[1758771577079,18.19420742,4060.0,4058.9,0.2485]
[1758771577286,2.46294447,4060.2,4058.9,0.6952]
[1758771577484,4.604,4060.3,4059.0,0.2485]
[1758771577688,4.604,4060.2,4059.0,0.6952]
[1758771577993,0.11904628,4060.4,4059.1,0.6952]
[1758771578203,4.605,4060.7,4059.2,3.15873624]
[1758771578380,0.001,4060.7,4059.3,1.01107362]
[1758771578715,0.001,4060.7,4058.7,0.002]
[1758771578716,2.46285474,4060.4,4059.4,0.6952]
[1758771578851,5.46272588,4060.6,4059.4,2.7482]
[1758771579052,0.001,4060.7,4059.5,0.27313357]
[1758771579382,0.001,4060.7,4059.6,0.1224]
[1758771579586,0.001,4060.7,4059.9,2.46310115]
[1758771579899,0.001,4060.7,4060.0,0.27340389]
[1758771580105,0.001,4060.7,4060.4,2.46278219]
[1758771580283,0.001,4060.7,4060.5,0.0246275]
[1758771580592,0.001,4060.7,4060.5,0.6952]
[1758771581093,0.001,4060.7,4060.6,0.6837]
[1758771582197,0.001,4060.7,4060.6,0.7083269]
[1758771582354,0.001,4060.7,4060.6,1.20611446]
[1758771582553,0.001,4060.7,4060.6,0.6837]
[1758771582782,0.001,4060.7,4060.6,0.7083269]
[1758771583197,0.001,4060.7,4060.6,0.6837]
[1758771583401,0.001,4060.7,4060.6,0.7083269]
[1758771583583,0.001,4060.7,4060.6,0.2472]
[1758771583987,0.001,4060.7,4060.6,0.7083269]
[1758771584288,0.001,4060.7,4060.6,0.6837]
[1758771584793,0.001,4060.7,4060.6,0.2472]
[1758771585493,0.001,4060.7,4060.6,0.6837]
[1758771588007,0.001,4060.7,4060.6,3.14639024]
[1758771588168,0.001,4060.7,4060.6,3.73193531]
[1758771588584,0.001,4060.7,4060.6,3.82970841]
[1758771588879,0.001,4060.7,4060.6,4.62170841]
[1758771589705,0.001,4060.7,4060.6,7.62170841]
[1758771590209,0.001,4060.7,4060.6,12.21370841]
[1758771590414,0.001,4060.7,4060.6,5.19839024]
[1758771590575,0.001,4060.7,4060.6,8.1197]
[1758771590775,0.001,4060.7,4060.6,0.6837]
[1758771590980,0.001,4060.7,4060.6,7.3267]
[1758771591497,0.001,4060.7,4060.6,9.78939024]
[1758771591703,0.001,4060.7,4060.6,8.55191942]
[1758771592209,0.001,4060.7,4060.6,11.01460966]
[1758771592423,0.001,4060.7,4060.6,11.80660966]
[1758771593091,0.001,4060.7,4060.6,9.34391942]
[1758771593291,0.001,4060.7,4060.6,1.90891942]
[1758771593486,0.001,4060.7,4060.6,0.6837]
[1758771593901,0.001,4060.7,4060.6,5.0037]
[1758771594410,0.001,4060.7,4059.9,0.2472]
[1758771594580,0.001,4060.7,4060.3,0.2472]
[1758771594784,0.001,4060.7,4060.3,2.052]
[1758771596303,0.001,4060.7,4058.7,0.002]
[1758771596521,3.0,4060.5,4059.1,0.2472]
[1758771596717,0.6197,4060.6,4059.2,4.241]
[1758771596924,3.0,4060.5,4059.2,6.293]
[1758771597124,0.1619,4060.6,4059.1,0.2472]
[1758771597330,3.0,4060.3,4059.2,2.637]
[1758771597497,0.6197,4060.4,4059.2,2.637]
[1758771597694,3.0,4060.3,4059.2,2.637]
[1758771598141,0.6197,4060.4,4059.2,2.637]
[1758771598718,3.6197,4060.4,4059.2,2.637]
[1758771598940,3.08252209,4060.4,4059.1,0.2472]
[1758771599308,3.0825267,4060.4,4059.1,0.2472]
[1758771599547,2.46295487,4060.2,4059.2,4.037]
[1758771599714,2.46302168,4060.1,4059.2,4.037]
[1758771599906,0.4578,4060.1,4059.1,0.2472]
[1758771600310,0.1619,4060.0,4059.2,4.848]
[1758771600634,0.1619,4060.0,4059.1,6.635]
[1758771600635,3.4578,4059.9,4059.1,6.635]